Cogmind - Beta 11 @@@ ROGUE MODE // 2022.04.15 @ 18:58:06 Player: deepledi Result: Destroyed self via exploding Fusion Modulator Performance ------------- Evolutions (4) 2000 Regions Visited (7) 1400 Robots Destroyed (197) 985 Value Destroyed (6446) 6446 Prototype IDs (8) 160 Alien Tech Used (0) 0 Bonus (915) 915 TOTAL SCORE: 11906 Bonus ------- High Alert Combat Kills 915 Cogmind --------- Core Integrity 0/850 Matter 56/300 Energy 100/150 System Corruption 0% Temperature Warm (111) Movement Core (700) Ox13 Location -6/Factory Parts ------- > --- POWER (2) -------- Micro Nuclear Core > --- PROPULSION (3) --- (None) > --- UTILITY (7) ------ Large Storage Unit Enhanced Optical Array Focal Shield > --- WEAPON (3) ------- Gauss Rifle Mini Assault Cannon Improved Grenade Launcher > --- INVENTORY (15) --- Triangulator Improved Sensor Array Improved Shield Generator Plasma Rifle Proton Cannon Heavy Particle Cannon Ion Cannon Ion Cannon Ion Cannon Gauss Rifle Great Axe Peak State ------------ > --- POWER ------------ Light Nuclear Core Light Fission Core > --- PROPULSION ------- Improved Medium Treads Improved Medium Treads Improved Medium Treads > --- UTILITY ---------- Advanced Heat Sink Advanced Heat Sink Advanced Heat Sink Large Storage Unit Armor Integrity Analyzer Phase Shifter System Restoration Module > --- WEAPON ----------- Spread Laser Gauss Rifle Mini Assault Cannon > --- INVENTORY -------- Light Treads Medium Matter Pod Improved Sensor Array Microactuators Heavy Particle Cannon Gauss Rifle Gauss Rifle Advanced EMP Blaster Improved Grenade Launcher Great Axe [Rating: 66] Favorites ----------- Power Improved Deuterium Engine Engine Improved Deuterium Engine Power Core Micro Nuclear Core Propulsion Armored Treads Treads Armored Treads Wheel Wheel Utility Large Storage Unit Device Improved Heat Sink Storage Large Storage Unit Processor Advanced Visual Processing Unit Protection Hardened Medium Armor Plating Weapon Heavy Particle Cannon Energy Gun Gatling Laser Energy Cannon Heavy Particle Cannon Ballistic Gun Gauss Rifle Ballistic Cannon Mini Assault Cannon Launcher Advanced EMP Blaster Build | -11 -10 -9 -8 -7 -7 -7 -6 ------- Run | Scr Mat Mat Mat Fac Low Low Fac Slots Evolved 8 | . . 2 2 2 . . 2 Power 1 | . . . . . . . 1 Propulsion 1 | . . . . 1 . . . Utility 5 | . . 2 1 1 . . 1 Weapon 1 | . . . 1 . . . . Parts Attached 177 | 9 17 9 23 56 3 . 60 Power 23 | 1 1 1 1 5 1 . 13 Engine 16 | 1 1 1 1 4 . . 8 Core 7 | . . . . 1 1 . 5 Reactor . | . . . . . . . . Propulsion 33 | 4 7 . 7 8 1 . 6 Treads 28 | 2 5 . 7 8 1 . 5 Leg . | . . . . . . . . Wheel 5 | 2 2 . . . . . 1 Hover . | . . . . . . . . Flight . | . . . . . . . . Utility 62 | 1 4 4 5 23 1 . 24 Device 43 | . 3 2 3 16 . . 19 Storage 2 | 1 1 . . . . . . Processor 5 | . . . 1 2 . . 2 Hackware . | . . . . . . . . Protection 12 | . . 2 1 5 1 . 3 Artifact . | . . . . . . . . Weapon 59 | 3 5 4 10 20 . . 17 Energy Gun 19 | 3 1 1 5 4 . . 5 Energy Cannon 26 | . 2 2 4 12 . . 6 Ballistic Gun 5 | . . . . 2 . . 3 Ballistic Cannon 7 | . 2 1 . 2 . . 2 Launcher 2 | . . . 1 . . . 1 Special Weapon . | . . . . . . . . Impact Weapon . | . . . . . . . . Slashing Weapon . | . . . . . . . . Piercing Weapon . | . . . . . . . . Special Melee Weapon . | . . . . . . . . Unidentified Prototypes 8 | . . 1 3 4 . . . Parts Lost 42 | . 3 . . 4 1 . 34 Power 9 | . 1 . . . 1 . 7 Propulsion 9 | . 1 . . . . . 8 Utility 15 | . . . . 2 . . 13 Weapon 9 | . 1 . . 2 . . 6 Highest Loss Streak 15 | . 1 . . 2 1 . 15 To Critical Strikes 1 | . . . . 1 . . . Average Slot Usage (%) 96 | . 95 99 99 98 93 92 90 Engine 7 | . 13 11 9 7 1 . 4 Core 1 | . . . . . 5 7 5 Treads 21 | . 24 22 18 23 23 23 18 Device 21 | . 10 29 21 23 15 15 23 Storage 8 | . 14 11 9 7 7 7 6 Processor 4 | . . . 4 4 8 7 5 Protection 5 | . . 3 9 8 7 7 3 Energy Gun 7 | . 21 . 5 4 15 15 5 Energy Cannon 13 | . 6 16 20 16 7 7 9 Ballistic Cannon 1 | . . 5 . 1 . . 3 Naked Turns . | . . . . . . . . Heaviest Build 82 | 14 32 48 54 70 61 61 82 Greatest Support 90 | 40 40 40 43 63 60 60 90 Greatest Overweight (x) 3 | . 3 1 1 1 1 1 1 Average Overweight (x) . | . . . 1 . . 1 . Largest Inventory Capacity 15 | 8 15 15 15 15 15 15 15 Average Capacity 14 | 7 10 15 15 15 15 15 15 Most Carried 15 | 7 14 15 15 15 15 14 15 Average Carried 13 | 3 8 13 14 14 13 14 13 Final Capacity 15 | 8 15 15 15 15 15 15 15 Final Carried 15 | 7 12 15 15 15 14 14 11 Class Distribution -------------------- 38% | Tank 21% | Scavenger-Tank 14% | Mutant 11% | Gunner 6% | Scavenger-Mutant 4% | Scavenger-Gunner Dominant Class ---------------- Mutant | -10/Materials Scavenger-Mutant | -9/Materials Tank | -8/Materials Tank | -7/Factory Tank | -7/Lower Caves Scavenger-Tank | -7/Lower Caves Gunner | -6/Factory Resources | -11 -10 -9 -8 -7 -7 -7 -6 ----------- Run | Scr Mat Mat Mat Fac Low Low Fac Matter Collected 2599 | 290 115 236 201 750 30 . 977 Remotely 208 | . . 208 . . . . . Salvage Created 8493 | 232 687 414 641 3283 84 . 3152 Parts 403 | 19 44 20 44 155 4 . 117 Haulers Intercepted 12 | . 2 1 3 6 . . . Recyclers Shooed 24 | . 8 1 . 7 . . 8 Parts Field Recycled . | . . . . . . . . Retrieved Matter . | . . . . . . . . Parts Self-Destructed 10 | . . . . . 10 . . Prevented . | . . . . . . . . Kills | -11 -10 -9 -8 -7 -7 -7 -6 ------- Run | Scr Mat Mat Mat Fac Low Low Fac Combat Hostiles Destroyed 121 | . 10 8 14 35 2 . 52 Guns 33 | . 7 . 3 9 2 . 12 Cannons 72 | . 3 8 9 25 . . 27 AOE 9 | . . . . . . . 9 Classes Destroyed 15 | 3 4 2 . 4 . . 2 Worker 11 | 2 3 . . 1 . . 5 Builder 6 | . . . . 5 . . 1 Tunneler 4 | 4 . . . . . . . Hauler 12 | . 2 1 3 6 . . . Recycler 23 | 1 3 . . 15 . . 4 Operator 5 | . . 1 1 1 . . 2 Watcher 17 | . 2 1 2 5 . . 7 Swarmer 15 | . 3 . 7 3 . . 2 Saboteur 1 | . . . . . . . 1 Grunt 62 | . 7 5 6 17 . . 27 Brawler 1 | . . . . . . . 1 Duelist 4 | . . . . 1 . . 3 Sentry 13 | . . 3 1 4 . . 5 Hunter 11 | . . . . 2 1 . 8 Programmer 14 | . . . . 8 1 . 5 Best Kill Streak 15 | 4 4 6 4 7 1 . 15 Combat Bots Only 13 | . 3 4 4 5 1 . 13 Max Kills in Single Turn 11 | 2 1 1 2 2 1 . 11 Gunslinging . | . . . . . . . . Exploded 9 | . . . . . . . 9 Melee . | . . . . . . . . Uniques/NPCs Destroyed . | . . . . . . . . Combat | -11 -10 -9 -8 -7 -7 -7 -6 -------- Run | Scr Mat Mat Mat Fac Low Low Fac Damage Taken 10075 | . 629 265 518 3001 98 . 5564 Core 1305 | . 147 44 56 129 . . 929 Absorbed by Shields 216 | . . . . . . . 216 Redirected to Shielding 123 | . . . . . . . 123 Core Remaining (%) 80 | 100 41 89 89 . . 81 . Volleys Fired 414 | 8 63 21 40 131 3 . 148 Largest 3 | 2 2 2 3 3 3 . 3 Hottest 245 | 100 136 150 225 230 220 . 245 Shots Fired 1073 | 16 124 42 97 368 8 . 418 Gun 369 | 16 105 . 13 79 5 . 151 Cannon 703 | . 19 42 84 289 3 . 266 Launcher 1 | . . . . . . . 1 Special . | . . . . . . . . Kinetic 164 | . . 22 . 26 . . 116 Thermal 897 | 16 124 20 97 334 8 . 298 Explosive 1 | . . . . . . . 1 Electromagnetic 11 | . . . . 8 . . 3 Robot Hit Streak 19 | 9 11 8 7 18 3 . 19 Robot Miss Streak 8 | 1 4 3 5 8 7 . 6 Penetration Max 1 | . . . . . . . 1 Secondary Targets 4 | . 1 . . . . . 3 Max Gunslinging Chain 1 | . 1 . . . . . 1 Shots Hit Robots 693 | 12 77 23 55 220 5 . 301 Core Hits 389 | 8 32 11 37 114 2 . 185 Critical Kills 5 | . . . 1 1 . . 3 Critical Parts Destroyed . | . . . . . . . . Critical Strikes 14 | 2 2 . 1 1 . . 8 Burn 4 | 2 2 . . . . . . Meltdown 5 | . . . 1 1 . . 3 Blast 5 | . . . . . . . 5 Melee Attacks . | . . . . . . . . Impact . | . . . . . . . . Slashing . | . . . . . . . . Piercing . | . . . . . . . . Sneak Attacks . | . . . . . . . . Combat Hostiles . | . . . . . . . . Follow-up Attacks . | . . . . . . . . Damage Inflicted 18179 | 173 1043 702 1198 5744 22 . 9297 Guns 5612 | 173 838 . 145 1384 22 . 3050 Cannons 10662 | . 205 493 1050 4238 . . 4676 Explosions 1755 | . . 209 . . . . 1546 Melee . | . . . . . . . . Ramming 150 | . . . 3 122 . . 25 Kinetic 2983 | . . 168 . 376 . . 2439 Thermal 14164 | 173 1043 325 1195 5072 22 . 6334 Explosive 589 | . . 209 . . . . 380 Electromagnetic 293 | . . . . 174 . . 119 Impact . | . . . . . . . . Slashing . | . . . . . . . . Piercing . | . . . . . . . . Highest Corruption 5 | . . 4 . 5 1 1 2 Average Corruption 1 | . . 4 . 1 1 1 1 Corruption Purged 10 | . . . . 7 . . 3 Corruption Blocked . | . . . . . . . . Effects 43 | . . 10 . 23 2 1 7 Message Errors 10 | . . 2 . 7 . . 1 Matter Fused 8 | . . 2 . 5 . . 1 Heat Flow Errors 3 | . . 2 . 1 . . . Energy Discharges 5 | . . . . 2 1 1 1 Data Loss (minor) 9 | . . 3 . 2 1 . 3 Data Loss (major) 2 | . . . . 2 . . . Misfires 2 | . . . . 2 . . . Alerts 1 | . . 1 . . . . . Weapon Failures 3 | . . . . 2 . . 1 Overload Shots . | . . . . . . . . Overflow Damage 499 | . . 20 31 108 . . 340 Projectiles 305 | . . 20 31 108 . . 146 Explosions 194 | . . . . . . . 194 Melee . | . . . . . . . . Knockbacks 9 | . . . . 3 . . 6 Impact . | . . . . . . . . Kinetic 8 | . . . . 3 . . 5 Secondary 1 | . . . . . . . 1 Self-Inflicted Damage 251 | . . . . . . . 251 Shots 3 | . . . . . . . 3 Rammed 20 | . 2 . 1 13 . . 4 Targets Rammed 24 | . 2 . 1 17 . . 4 Kicked . | . . . . . . . . Crushed 4 | . . . . 4 . . . Highest Temperature 388 | 78 388 172 326 308 111 . 358 Average Temperature 92 | 30 113 50 98 83 41 . 94 Received Heat Transfer 3378 | . 381 114 252 1053 . . 1578 Effects 8 | . 1 . 1 3 . . 3 Energy Bleed 1 | . 1 . . . . . . Interference 7 | . . . 1 3 . . 3 Siege Activations . | . . . . . . . . Robots Corrupted . | . . . . . . . . Combat Hostiles . | . . . . . . . . Parts Fried 2 | . . . . 2 . . . Impact Corruptions . | . . . . . . . . Robots Melted 7 | . . . 2 1 . . 4 Combat Hostiles 7 | . . . 2 1 . . 4 Parts Melted 45 | 1 4 1 5 15 . . 19 Heat Transferred 23283 | 666 2796 481 1734 8092 35 . 9479 Parts Sabotaged . | . . . . . . . . Parts Stolen . | . . . . . . . . Parts Stripped . | . . . . . . . . Power Chain Reactions . | . . . . . . . . Missiles Intercepted . | . . . . . . . . Alert | -11 -10 -9 -8 -7 -7 -7 -6 ------- Run | Scr Mat Mat Mat Fac Low Low Fac Peak Influence 782 | 35 154 414 265 782 . . 754 Initial 170 | . 22 17 93 81 . . 170 Average 308 | 17 79 219 133 344 . . 507 Maximum Alert Level 3 | . . 2 1 3 . . 3 Low Security (%) 48 | 100 100 18 75 44 . . 18 Level 1 15 | . . 79 24 11 . . 11 Level 2 26 | . . 2 . 24 . . 64 Level 3 8 | . . . . 19 . . 5 Level 4 . | . . . . . . . . Level 5 . | . . . . . . . . High Security . | . . . . . . . . Max Security . | . . . . . . . . Squads Dispatched 30 | . 1 1 2 10 . . 16 Investigation 2 | . . . 1 . . . 1 Extermination 12 | . . . . 7 . . 5 Reinforcement 7 | . 1 1 1 3 . . 1 Assault 3 | . . . . . . . 3 Garrison 6 | . . . . . . . 6 Intercept . | . . . . . . . . Searches Triggered . | . . . . . . . . Construction Impeded . | . . . . . . . . Haulers Reinforced . | . . . . . . . . Active Scanning Responses . | . . . . . . . . Cargo Convoy Interrupts 1 | . . . . . . . 1 Stealth | -11 -10 -9 -8 -7 -7 -7 -6 --------- Run | Scr Mat Mat Mat Fac Low Low Fac Distress Signals 13 | . 1 2 . 5 . . 5 Communications Jammed . | . . . . . . . . Distress Signals . | . . . . . . . . Times Spotted 174 | . 18 10 17 51 2 . 76 Peak Tracking Total 14 | . 3 5 5 5 1 . 14 Tactical Retreats 9 | . 1 1 . 4 . . 3 Traps | -11 -10 -9 -8 -7 -7 -7 -6 ------- Run | Scr Mat Mat Mat Fac Low Low Fac Traps Triggered 3 | . . . 1 2 . . . Indirectly . | . . . . . . . . Trap Hack Attempts . | . . . . . . . . Triggered . | . . . . . . . . Disarmed . | . . . . . . . . Reprogrammed . | . . . . . . . . Reused . | . . . . . . . . Traps Extracted . | . . . . . . . . Installed . | . . . . . . . . Triggered 4 | . . . . . 1 . 3 Machines | -11 -10 -9 -8 -7 -7 -7 -6 ---------- Run | Scr Mat Mat Mat Fac Low Low Fac Machines Disabled 16 | . . 5 3 4 . . 4 Max in Single Turn 3 | . . 3 2 1 . . 3 Machines Sabotaged . | . . . . . . . . Garrisons Compromised 1 | . . . . . . . 1 Overloaded Fab Kills . | . . . . . . . . Hacking | -11 -10 -9 -8 -7 -7 -7 -6 --------- Run | Scr Mat Mat Mat Fac Low Low Fac Machines Accessed 1 | . 1 . . . . . . Terminals . | . . . . . . . . Fabricators . | . . . . . . . . Repair Stations . | . . . . . . . . Recycling Units 1 | . 1 . . . . . . Scanalyzers . | . . . . . . . . Garrison Access . | . . . . . . . . Total Hacks 4 | . 4 . . . . . . Successful 4 | . 4 . . . . . . Failed . | . . . . . . . . Catastrophic . | . . . . . . . . Database Lockouts . | . . . . . . . . Manual . | . . . . . . . . Terminals . | . . . . . . . . Fabricators . | . . . . . . . . Repair Stations . | . . . . . . . . Recycling Units 4 | . 4 . . . . . . Scanalyzers . | . . . . . . . . Garrison Access . | . . . . . . . . Terminal Hacks . | . . . . . . . . Fabricator Hacks . | . . . . . . . . Repair Station Hacks . | . . . . . . . . Recycling Unit Hacks 4 | . 4 . . . . . . Report Inventory 2 | . 2 . . . . . . Retrieve Components 2 | . 2 . . . . . . Scanalyzer . | . . . . . . . . Garrison Access Hacks . | . . . . . . . . Unauthorized Hacks . | . . . . . . . . Terminals . | . . . . . . . . Fabricators . | . . . . . . . . Repair Stations . | . . . . . . . . Recycling Units . | . . . . . . . . Scanalyzers . | . . . . . . . . Garrison Access . | . . . . . . . . Data Cores Recovered 1 | . . . . . . . 1 Used . | . . . . . . . . Hacking Detections . | . . . . . . . . Full Trace Events . | . . . . . . . . Feedback Events . | . . . . . . . . Feedback Blocked . | . . . . . . . . Robot Schematics Acquired . | . . . . . . . . Robots Built . | . . . . . . . . Authchips . | . . . . . . . . Time . | . . . . . . . . Total Robot Build Rating . | . . . . . . . . Part Schematics Acquired . | . . . . . . . . Parts Built . | . . . . . . . . Authchips . | . . . . . . . . Time . | . . . . . . . . Total Part Build Rating . | . . . . . . . . Parts Repaired . | . . . . . . . . Time . | . . . . . . . . Parts Recycled . | . . . . . . . . Recycled Matter . | . . . . . . . . Retrieved Matter . | . . . . . . . . Retrieved Components 7 | . 7 . . . . . . Parts Scanalyzed . | . . . . . . . . Part Schematics Acquired . | . . . . . . . . Parts Damaged . | . . . . . . . . Bothacking | -11 -10 -9 -8 -7 -7 -7 -6 ------------ Run | Scr Mat Mat Mat Fac Low Low Fac Used RIF Installer . | . . . . . . . . Robots Hacked . | . . . . . . . . Non-combat . | . . . . . . . . Combat . | . . . . . . . . Robot Hacks Applied . | . . . . . . . . Relay Couplers Released . | . . . . . . . . Fabnet Peak Effective % . | . . . . . . . . Robots Rewired . | . . . . . . . . Allies Hacked . | . . . . . . . . Hacks Repelled . | . . . . . . . . Allies | -11 -10 -9 -8 -7 -7 -7 -6 -------- Run | Scr Mat Mat Mat Fac Low Low Fac Total Allies . | . . . . . . . . Largest Group . | . . . . . . . . Highest-Rated Group . | . . . . . . . . Highest-Rated Ally . | . . . . . . . . Total Orders . | . . . . . . . . Ally Attacks . | . . . . . . . . Total Damage . | . . . . . . . . Kills . | . . . . . . . . Allies Corrupted . | . . . . . . . . Allies Melted . | . . . . . . . . Intel | -11 -10 -9 -8 -7 -7 -7 -6 ------- Run | Scr Mat Mat Mat Fac Low Low Fac Robot Analysis Total . | . . . . . . . . Derelict Logs Recovered 1 | . . . . . 1 . . Drone Launches . | . . . . . . . . Drone Recoveries . | . . . . . . . . Exploration | -11 -10 -9 -8 -7 -7 -7 -6 ------------- Run | Scr Mat Mat Mat Fac Low Low Fac Turns Passed 10048 | 176 1202 583 1526 3440 483 38 2600 Spaces Moved 4126 | 104 523 233 535 1468 208 16 1039 Core 31 | 31 . . . . . . . Treads 3930 | 69 362 233 535 1468 208 16 1039 Legs . | . . . . . . . . Wheels 165 | 4 161 . . . . . . Hover . | . . . . . . . . Flight . | . . . . . . . . Fastest Speed 50 | 50 80 160 240 163 170 250 160 Average Speed 188 | 124 145 207 240 185 225 250 181 Slowest Speed 250 | 160 240 240 245 250 250 250 250 Overloaded Moves . | . . . . . . . . Propulsion Burnouts . | . . . . . . . . Robots Hopped . | . . . . . . . . Cave-ins Triggered . | . . . . . . . . Exploration Rate (%) 32 | 5 77 25 33 40 54 6 21 Regions Visited 7 Branch Regions 2 Pre-discovered Areas 1 | . . . . . 1 . . Known Exits Taken 1 | . . . . 1 . . . Unknown Exits Taken 6 | 1 1 1 1 . 1 1 . Scrap Searched . | . . . . . . . . Spaces Dug 7 | . . . . 4 . . 3 Terrain Destroyed 113 | . . 16 25 23 . . 49 Melee . | . . . . . . . . Projectile 93 | . . 7 25 23 . . 38 AOE 20 | . . 9 . . . . 11 Terrain Rammed . | . . . . . . . . Walls Destroyed . | . . . . . . . . Machines Disabled . | . . . . . . . . Actions | -11 -10 -9 -8 -7 -7 -7 -6 --------- Run | Scr Mat Mat Mat Fac Low Low Fac Total 5477 | 133 838 294 694 1873 216 15 1414 Wait 483 | . 211 14 55 117 . . 86 Move 4119 | 103 522 232 534 1467 207 15 1039 Hop . | . . . . . . . . Pick Up 140 | 13 16 10 20 35 1 . 45 Fast Attach 16 | . . . . 9 . . 7 Attach 67 | 6 4 5 6 10 2 . 34 Detach 12 | . . 2 2 5 1 . 2 Swap 94 | 3 13 4 17 37 1 . 19 Drop 108 | . 7 6 19 45 1 . 30 Fire 414 | 8 63 21 40 131 3 . 148 Melee . | . . . . . . . . Ram . | . . . . . . . . Kick . | . . . . . . . . Crush 24 | . 2 . 1 17 . . 4 Escape Stasis . | . . . . . . . . Rewire . | . . . . . . . . Trap . | . . . . . . . . Miscellaneous . | . . . . . . . . Route ------- -11/Scrapyard -10/Materials (discovered 3 exits: [*Mat x2] / [*Min]) -9/Materials -8/Materials -7/Factory (discovered 3 exits: *Fac / *Low x2) -7/Lower Caves -7/Lower Caves -6/Factory History --------- Turn | Location | Event 4 | -11/Scrapyard | Discovered new exit (range 16) 177 | -11/Scrapyard | Entered Materials 318 | -10/Materials | Build established: Mutant 538 | -10/Materials | Discovered new exit (range 8) 859 | -10/Materials | Discovered new exit (range 13) 1087 | -10/Materials | Core integrity fell below 50% 1303 | -10/Materials | Discovered new exit (range 15) 1379 | -10/Materials | Entered another Materials area 1379 | -9/Materials | Evolved 2 slots: Utility x2 1654 | -9/Materials | Build established: Scavenger-Mutant 1916 | -9/Materials | Discovered new exit (range 15) 1962 | -9/Materials | Entered another Materials area 1962 | -8/Materials | Evolved 2 slots: Utility x1, Weapon x1 2546 | -8/Materials | Build established: Scavenger-Tank 2978 | -8/Materials | Build established: Tank 3381 | -8/Materials | Discovered new exit (range 8) 3488 | -8/Materials | Entered Factory 3488 | -7/Factory | Evolved 2 slots: Propulsion x1, Utility x1 3764 | -7/Factory | Discovered new exit (range 15) 4266 | -7/Factory | Discovered new exit (range 16) 4667 | -7/Factory | Build established: Scavenger-Tank 5795 | -7/Factory | Build established: Tank 6619 | -7/Factory | Discovered new exit (range 5) 6632 | -7/Factory | Identified exit to Lower Caves 6928 | -7/Factory | Entered Lower Caves 7145 | -7/Lower Caves | Learned location of Extension (-6) 7351 | -7/Lower Caves | Discovered new exit (range 14) 7411 | -7/Lower Caves | Entered another Lower Caves area 7419 | -7/Lower Caves | Discovered new exit (range 12) 7449 | -7/Lower Caves | Entered Factory 7449 | -6/Factory | Evolved 2 slots: Power x1, Utility x1 7660 | -6/Factory | Build established: Scavenger-Tank 8177 | -6/Factory | Garrison activated, responded to threat 8379 | -6/Factory | Lost 15 parts (3p3n5u4w) 8387 | -6/Factory | Destroyed 8 combat bots 8495 | -6/Factory | Garrison activated, responded to threat 8591 | -6/Factory | Build established: Scavenger-Gunner 8800 | -6/Factory | Core integrity fell below 50% 8847 | -6/Factory | Cargo convoy interrupted 9093 | -6/Factory | Build established: Gunner 9899 | -6/Factory | First assault squad dispatched 10040 | -6/Factory | Core integrity fell below 20% 10049 | -6/Factory | Destroyed self via exploding Fusion Modulator Last Messages --------------- 10049_ G-67 Veteran destroyed. 10049_ K-01 Serf destroyed. 10049_ Destroyed Hvy. Laser. 10049_ Destroyed Carbon-fiber Leg. 10049_ Fusion Modulator explodes. 10049_ G-67 Veteran destroyed. 10049_ Destroyed Adv. Heat Sink. 10049_ G-50 Soldier destroyed. [Achievement: Quick And Dirty] 10049_ Destroyed Welding Torch. 10049_ Destroyed Wheel. 10049_ Destroyed Lgt. Deuterium Engine. 10049_ B-48 Gladiator destroyed. 10049_ P-60 Hacker destroyed. 10049_ Fusion Modulator explodes. 10049_ Destroyed Lgt. Ion Engine. 10049_ K-01 Serf destroyed. 10049_ Destroyed Hvy. Laser. 10049_ Destroyed Lgt. Angular Momentum Engine. 10049_ G-50 Soldier destroyed. Map ----- +----------------------------------------------------+ | ##### + #?????????????? | | # ########## #?????????????? | | """"# ##+########?# #?????????????? | | """"#^ # #?# #?????????????? | | """"# ^^ # "" #?# #?????######### | | """"# # "" #?# [ ### | | """"# # """ #?# + | | """"# # """ #?# ] ### | | # # !! """ #?# #???? ####?? | | # # !! #?#######+######## #????? | | + + #??????# #????? | | # ###########??????# #????? | | ##### ## #?????????# #????? | | ?## ## """ ########### ############ #????? | | ""?# # """ # ! ## #?????????????????? | | "" # # """ # ## #?????????????????? | | "" # % # # """ ## #?????????????????? | | + + """ # """ ## #?????????????????? | | "" # % # """ # """ ## # ????????????????? | | "" # # """ # ! ## # ???????????????? | | ""?# # # ## # ""??????????????? | | ?### ### # ;#u #?""" ????????????? | | ###??# #?# ]# =;# +?""" #???????????? | | #??# #?# # %=;; #?? #???????????? | | #??# #?####### %] ; #######???????????? | | #?## ##??????# @ # #???????????? | | #?# #??????# m =% ! # #???????????? | | ### #??????# g[ %m + #???????????? | | # # +??????# u= # !#???????????? | | ### #??????# % # #???????????? | | %### #??????# % # #???????????? | | #####%###??????#! [!* *=# # #???????????? | | #####%#????????########## # = #???????????? | | %%%%%%%###### ????# ######???????????? | | %! %%%% %% + """???????# %#????????????????? | | % ############ """???????+ #????????????????? | | #########?????????????????# #????????????????? | | #?????????????# #????????????????? | | #?????????????# #????????????????? | | "" """""" #????????????? ????????????????? | | """ """"""???????????????? ???????????????? | | """ """"????????????????? ???????????????? | | """ """"????????????????? #??????????????? | | ?????????????????? +??????????????? | | ?? ????????????????? #??????????????? | | ##???#+????????????????? #??????????????? | | ????????????????????????# +??????????????? | | ????????????????????????? ???????????????? | | ??????????????????????????#######????????????????? | | ?????????????????????????????????????????????????? | +----------------------------------------------------+ Best States ------------- Heat Dissipation 94 Coolant Potential 65 Energy Generation 31 Energy Capacity 350 Matter Stores 300 Matter Capacity 300 Sight Range 22 Robot Scan Range 15 Terrain Scan Range 20 Terrain Scan Density 10 Jamming Range 12 Base Temperature (-) 100 Armor Coverage 600 Resistance: KI 20 Resistance: TH 20 Weapon Shielding 66 Phase Shifting 5 Evasion (%) 50 Armor Integrity Analysis 30 Recoil Reduction 3 Particle Charging 20 Item Schematics ----------------- None Robot Schematics ------------------ None Fabricated ------------ Nothing Alien Tech Used ----------------- None Achievements -------------- Quick And Dirty Challenges ------------ None Game ------ Seed PhasingDisruptionFilter Manual? 0 Play Time 01:23:21 Cumulative 47.6 hours Start 2022.04.15 @ 16:49:57 End 2022.04.15 @ 18:58:06 Sessions 1 Manual Loads 0 Difficulty Rogue Special Mode None Game No. 51 Rogue 51 Adventurer 0 Explorer 0 Win Type - Total 0 Types 0/0/0/0/0/0/0/0/0 Lore% 29 Gallery% 43 Achievement% 34 Wizard Run 0 Options --------- ASCII 0 Keyboard 0 Movement Arrows Keybinds 0 Fullscreen 2 Font 18/SmallcapsGlow Map View 76x50 Tactical HUD 1 Map Filters NONE Filters NONE Steam 1 RUN: ff232710-bb65-4e13-9f3d-bbdf454b20c7